bitfinex/quotes_SOLUSD_20251118
["timestamp","ask_amount","ask_price","bid_price","bid_amount"]
[1763494411291,5.24065708,142.01,141.97,0.71]
[1763494412291,3.87653091,142.0,141.97,0.71]
[1763494413793,4.53653091,142.0,141.97,0.71]
[1763494414022,0.66,142.0,141.97,0.71]
[1763494415212,4.53653091,142.0,141.97,0.71]
[1763494415792,5.24065708,142.01,141.97,0.71]
[1763494417419,0.66,142.0,141.97,0.71]
[1763494418122,0.66,142.0,141.96,3.87653091]
[1763494418123,4.53653091,142.0,141.94,4.18]
[1763494418322,4.53653091,142.0,141.95,14.3653586]
[1763494418612,4.53653091,142.0,141.95,18.5453586]
[1763494418816,4.53653091,142.0,141.96,0.7]
[1763494419619,4.53653091,141.99,141.96,0.7]
[1763494420000,3.87653091,141.99,141.96,0.7]
[1763494420522,3.87653091,142.0,141.96,0.7]
[1763494420902,3.14348543,142.0,141.96,0.7]
[1763494421300,2.48348543,141.97,141.93,0.7]
[1763494421710,3.14348543,141.97,141.93,0.7]
[1763494422407,0.66,141.97,141.93,0.7]
[1763494422718,20.60444543,141.99,141.94,12.27231312]
[1763494422912,21.29444543,141.99,141.95,4.87]
[1763494423220,20.60444543,141.99,141.95,4.87]
[1763494423428,3.8776116,141.98,141.95,4.87]
[1763494424004,2.48348543,141.98,141.95,4.87]
[1763494424210,2.48348543,141.98,141.96,0.69]
[1763494424821,3.17348543,141.98,141.95,4.87]
[1763494425220,3.17348543,141.98,141.95,0.69]
[1763494425520,2.48348543,141.98,141.95,0.69]
[1763494426201,2.48348543,141.98,141.94,13.96882769]
[1763494426405,3.17348543,141.97,141.94,4.18]
[1763494426603,2.48348543,141.96,141.92,0.69]
[1763494426928,3.17348543,141.95,141.92,4.18]
[1763494427427,3.17348543,141.95,141.92,4.87]
[1763494427825,20.60444543,141.96,141.93,0.69]
[1763494428016,21.29444543,141.96,141.93,0.69]
[1763494428330,3.17348543,141.96,141.93,0.69]
[1763494429629,3.17348543,141.97,141.93,0.69]
[1763494430006,2.48348543,141.96,141.92,4.18]
[1763494430207,0.69,141.95,141.92,4.18]
[1763494430433,3.17348543,141.95,141.92,4.18]
[1763494430729,2.48348543,141.94,141.92,4.18]
[1763494430927,3.17348543,141.94,141.92,4.18]
[1763494431106,0.69,141.94,141.92,4.18]
[1763494431314,0.69,141.94,141.91,0.2]
[1763494431626,0.69,141.94,141.91,0.89]
[1763494432324,3.17348543,141.94,141.91,0.2]
[1763494432929,0.69,141.94,141.91,0.2]
[1763494433130,3.17348543,141.94,141.91,0.2]
[1763494433831,18.82508617,141.97,141.92,0.69]
[1763494433832,0.70412617,141.97,141.92,0.69]
[1763494434037,3.17348543,141.96,141.92,0.69]
[1763494434418,3.17348543,141.95,141.92,0.69]
[1763494434618,2.48348543,141.95,141.92,0.69]
[1763494435112,0.69,141.95,141.92,0.69]
[1763494435313,3.17348543,141.96,141.92,0.69]
[1763494436044,2.48348543,141.96,141.92,0.69]
[1763494436221,3.17348543,141.96,141.92,0.69]
[1763494436751,2.48348543,141.96,141.92,0.69]
[1763494437438,3.17348543,141.96,141.92,0.69]
[1763494438245,0.69,141.95,141.92,0.69]
[1763494438434,3.17348543,141.96,141.92,0.69]
[1763494440542,2.48348543,141.96,141.92,0.69]
[1763494440758,21.9985716,141.97,141.92,0.69]
[1763494440931,3.17348543,141.96,141.92,0.69]
[1763494442119,3.17348543,141.95,141.91,4.38]
[1763494442448,2.48348543,141.94,141.91,4.38]
[1763494442741,3.17348543,141.94,141.91,0.89]
[1763494442952,2.48348543,141.92,141.91,0.2]
[1763494443242,20.60444543,141.92,141.91,0.2]
[1763494443554,21.29444543,141.92,141.91,0.2]
[1763494443743,3.17348543,141.92,141.91,0.2]
[1763494447259,3.17348543,141.92,141.9,0.2]
[1763494447425,3.17348543,141.91,141.9,0.2]
[1763494449047,3.8776116,141.91,141.9,0.2]
[1763494449555,21.9985716,141.91,141.9,0.2]
[1763494450062,3.8776116,141.91,141.9,0.2]
[1763494450231,21.9985716,141.91,141.9,0.2]
[1763494451432,21.3085716,141.91,141.9,0.2]
[1763494451637,21.9985716,141.91,141.9,0.2]
[1763494452526,19.51508617,141.91,141.9,0.2]
[1763494452731,2.48348543,141.92,141.9,0.87]
[1763494452931,18.12096,141.91,141.9,0.2]
[1763494453157,20.60444543,141.91,141.9,0.2]
[1763494453451,2.48348543,141.91,141.9,0.87]
[1763494453627,2.48348543,141.92,141.9,0.87]
[1763494454055,2.48348543,141.92,141.9,0.2]
[1763494454763,3.8376116,141.91,141.9,0.2]
[1763494455054,3.1876116,141.91,141.9,0.2]
[1763494460140,3.8376116,141.91,141.9,0.2]
[1763494460452,21.9585716,141.91,141.9,0.2]
[1763494460657,26.1385716,141.91,141.9,0.2]
[1763494461563,23.65508617,141.91,141.9,0.2]
[1763494461858,35.92739929,141.91,141.9,0.2]
[1763494462737,26.1385716,141.91,141.9,0.2]
[1763494463362,30.87486701,141.91,141.9,0.2]
[1763494463967,8.0176116,141.91,141.9,0.2]
[1763494464155,7.3676116,141.91,141.9,0.2]
[1763494464471,3.1876116,141.91,141.9,0.2]
[1763494464785,19.52508617,141.91,141.9,0.2]
[1763494464948,21.3085716,141.91,141.9,0.2]
[1763494465848,22.0085716,141.91,141.9,0.2]
[1763494466256,21.3085716,141.91,141.9,0.2]
[1763494466654,22.0085716,141.91,141.9,0.2]
[1763494469186,36.53721033,141.91,141.9,0.2]
[1763494469358,9.78882769,141.89,141.87,0.2]
[1763494469675,25.4885716,141.88,141.87,0.2]
[1763494469837,26.1885716,141.88,141.87,0.2]
[1763494470038,30.92868292,141.88,141.87,0.2]
[1763494471046,40.71680219,141.88,141.87,0.2]
[1763494471366,4.88412617,141.88,141.87,0.2]
[1763494471557,5.58412617,141.88,141.87,0.2]
[1763494471951,8.0676116,141.88,141.87,0.2]
[1763494473049,7.3676116,141.88,141.87,0.2]
[1763494473582,8.0676116,141.88,141.87,0.2]
[1763494480875,7.3676116,141.88,141.87,0.2]
[1763494481055,23.00508617,141.88,141.87,0.92]
[1763494481374,7.3676116,141.88,141.87,0.2]
[1763494482474,8.0476116,141.88,141.87,0.2]
[1763494482676,26.1685716,141.88,141.87,0.2]
[1763494482861,14.19143514,141.88,141.87,0.2]
[1763494484269,9.45271714,141.88,141.87,0.2]
[1763494485460,37.36250483,141.88,141.87,0.2]
[1763494485774,37.36250483,141.88,141.85,0.2]
[1763494485775,10.46882769,141.87,141.85,0.2]
[1763494485974,18.56154483,141.86,141.84,0.2]
[1763494486177,8.62730897,141.85,141.84,0.2]
[1763494486352,9.30730897,141.85,141.84,0.2]
[1763494486976,19.09613666,141.85,141.84,0.2]
[1763494487857,9.30730897,141.85,141.84,0.2]
[1763494488053,4.56859097,141.85,141.84,0.2]
[1763494488359,9.30730897,141.85,141.84,0.2]
[1763494494178,4.738718,141.85,141.84,0.2]
[1763494494384,3.88859097,141.85,141.84,0.2]
[1763494494683,3.88859097,141.85,141.84,0.85]
[1763494494978,4.88412617,141.86,141.84,0.85]
[1763494495276,26.89367714,141.86,141.85,0.65]
[1763494495457,22.71367714,141.86,141.85,0.65]
[1763494496660,22.71367714,141.86,141.81,0.2]
[1763494496661,22.71367714,141.86,141.8,1.68329097]
[1763494496980,18.12096,141.84,141.8,3.88859097]
[1763494498082,22.00955097,141.85,141.8,3.88859097]
[1763494498774,22.00955097,141.85,141.81,0.65]
[1763494499569,18.12096,141.85,141.81,0.65]
[1763494500264,0.70412617,141.91,141.84,3.88859097]
[1763494500465,3.88859097,141.91,141.85,4.53859097]
[1763494500679,4.59271714,141.9,141.85,3.88859097]
[1763494500858,4.59271714,141.91,141.86,0.65]
[1763494501063,0.70412617,141.91,141.86,4.53859097]
[1763494501576,4.59271714,141.91,141.87,0.65]
[1763494501881,0.70412617,141.91,141.87,0.65]
[1763494502184,0.70412617,141.91,141.87,4.53859097]
[1763494502369,4.59271714,141.91,141.87,0.65]
[1763494504994,0.70412617,141.91,141.87,0.65]
[1763494505285,3.88859097,141.91,141.87,0.65]
[1763494505887,3.88859097,141.88,141.83,3.88859097]
[1763494506367,3.88859097,141.88,141.83,4.53859097]
[1763494508485,3.88859097,141.88,141.83,0.65]
[1763494508792,3.88859097,141.86,141.8,0.65]
[1763494508978,3.88859097,141.86,141.81,4.53859097]
[1763494509163,18.82508617,141.87,141.82,3.88859097]
[1763494509364,18.82508617,141.87,141.82,4.53859097]
[1763494509683,18.82508617,141.87,141.83,0.65]
[1763494510759,18.12096,141.83,141.78,0.75]
[1763494510978,3.88859097,141.8,141.78,0.1]
[1763494511178,3.88859097,141.79,141.78,0.1]
[1763494511387,22.00955097,141.79,141.78,0.1]
[1763494511694,4.56859097,141.79,141.78,0.1]
[1763494512669,4.56859097,141.79,141.77,0.2]
[1763494512876,4.59859097,141.78,141.77,0.2]
[1763494513385,4.59859097,141.78,141.76,0.1]
[1763494513593,8.77859097,141.77,141.75,0.1]
[1763494513787,4.73737785,141.8,141.75,0.1]
[1763494513977,3.88859097,141.76,141.75,0.1]
[1763494514376,4.18,141.77,141.75,0.1]
[1763494514684,3.88859097,141.76,141.75,0.1]
[1763494515287,3.88859097,141.79,141.75,0.8]
[1763494515685,22.00955097,141.79,141.75,0.8]
[1763494515883,3.88859097,141.79,141.75,0.8]
[1763494516083,3.88859097,141.79,141.76,9.78882769]
[1763494516276,22.00955097,141.8,141.76,9.78882769]
[1763494516474,8.06859097,141.82,141.77,0.7]
[1763494516790,3.88859097,141.82,141.77,0.7]
[1763494516992,3.88859097,141.83,141.78,9.78882769]
[1763494517166,3.88859097,141.83,141.79,0.7]
[1763494517592,3.88859097,141.82,141.79,0.7]
[1763494517768,3.88859097,141.8,141.77,0.7]
[1763494517971,3.88859097,141.8,141.78,0.7]
[1763494518187,3.88859097,141.81,141.78,0.7]
[1763494520478,22.00955097,141.81,141.77,9.78882769]
[1763494520677,0.70412617,141.83,141.76,9.78882769]
[1763494520886,3.88859097,141.8,141.76,10.48882769]
[1763494521295,3.88859097,141.8,141.77,0.71]
[1763494521469,3.88859097,141.79,141.77,0.71]
[1763494521894,3.88859097,141.8,141.77,0.71]
[1763494523182,3.88859097,141.79,141.77,0.71]
[1763494523582,3.88859097,141.8,141.77,0.71]
[1763494527174,22.71367714,141.81,141.77,0.71]
[1763494527376,4.18,141.84,141.77,4.59859097]
[1763494527582,3.88859097,141.82,141.77,0.71]
[1763494527894,3.88859097,141.82,141.78,0.71]
[1763494528279,3.88859097,141.81,141.78,0.71]
[1763494529003,1.39412617,141.83,141.78,0.71]
[1763494529004,3.88859097,141.82,141.78,0.71]
[1763494530598,8.06859097,141.84,141.79,9.78882769]
[1763494530780,22.30096,141.84,141.8,0.71]
[1763494530987,22.00955097,141.84,141.8,0.71]
[1763494531389,3.88859097,141.84,141.8,0.71]
[1763494532618,18.12096,141.85,141.81,9.78882769]
[1763494532905,22.00955097,141.85,141.81,9.78882769]
[1763494533106,22.00955097,141.85,141.82,0.71]
[1763494533498,3.88859097,141.84,141.8,9.78882769]
[1763494533698,3.88859097,141.84,141.81,0.71]
[1763494534425,3.88859097,141.82,141.76,0.71]
[1763494534728,3.88859097,141.77,141.75,0.1]
[1763494535389,3.88859097,141.77,141.75,0.81]
[1763494535587,18.12096,141.78,141.75,0.81]
[1763494535588,3.88859097,141.78,141.75,0.81]
[1763494535810,18.81096,141.79,141.75,0.81]
[1763494536024,3.88859097,141.78,141.75,0.81]
[1763494536229,18.12096,141.79,141.75,0.81]
[1763494536400,3.88859097,141.78,141.75,0.81]
[1763494537830,3.88859097,141.77,141.75,0.81]
[1763494538029,3.88859097,141.76,141.75,0.1]
[1763494538485,4.57859097,141.77,141.75,0.1]
[1763494538685,3.88859097,141.77,141.75,0.81]
[1763494538892,3.88859097,141.77,141.75,0.1]
[1763494542113,3.88859097,141.77,141.75,0.81]
[1763494543503,22.99096,141.79,141.75,0.81]
[1763494543824,22.99096,141.79,141.75,0.1]
[1763494543825,0.68,141.78,141.75,0.1]
[1763494544029,3.88859097,141.76,141.75,0.1]
[1763494544212,3.88859097,141.77,141.75,0.1]
[1763494544818,2.49156446,141.77,141.75,0.1]
[1763494547827,7.35156446,141.77,141.72,0.76]
[1763494548131,3.17156446,141.77,141.73,0.66]
[1763494548709,2.49156446,141.77,141.73,0.66]
[1763494548911,0.68,141.76,141.73,0.66]
[1763494549128,2.49156446,141.77,141.73,0.66]
[1763494549311,0.68,141.76,141.73,0.66]
[1763494550018,2.49156446,141.77,141.73,0.66]
[1763494550220,0.68,141.76,141.73,0.66]
[1763494550422,3.87569063,141.78,141.73,0.66]
[1763494550620,4.2,141.79,141.74,12.28039215]
[1763494550822,1.38412617,141.81,141.74,12.28039215]
[1763494550823,3.17156446,141.8,141.74,12.28039215]
[1763494551026,3.17156446,141.8,141.75,0.66]
[1763494551634,3.17156446,141.8,141.75,3.15156446]
[1763494551833,3.19569063,141.81,141.76,3.15156446]
[1763494552218,0.68,141.8,141.76,3.15156446]
[1763494552425,2.49156446,141.82,141.77,3.15156446]
[1763494552616,2.49156446,141.82,141.77,0.66]
[1763494552816,2.49156446,141.81,141.78,0.66]
[1763494553017,2.49156446,141.8,141.76,4.2]
[1763494553223,3.17156446,141.8,141.76,4.2]
[1763494553534,3.17156446,141.8,141.76,4.86]
[1763494553739,2.49156446,141.79,141.76,4.86]
[1763494554035,2.49156446,141.78,141.74,0.66]
[1763494554215,2.49156446,141.77,141.72,3.25156446]
[1763494554415,2.49156446,141.77,141.72,0.76]
[1763494554619,3.17156446,141.77,141.73,0.66]
[1763494555617,3.17156446,141.76,141.72,9.88882769]
[1763494556017,3.17156446,141.76,141.72,10.54882769]
[1763494557219,3.17156446,141.76,141.72,0.1]
[1763494557542,3.17156446,141.76,141.72,10.54882769]
[1763494557934,3.17156446,141.76,141.72,9.88882769]
[1763494558135,3.17156446,141.76,141.73,0.66]
[1763494558442,2.49156446,141.76,141.73,0.66]
[1763494560250,22.32096,141.81,141.73,0.66]
[1763494560430,0.68,141.76,141.73,0.66]
[1763494560631,18.12096,141.77,141.73,0.66]
[1763494560951,3.87569063,141.8,141.75,2.49156446]
[1763494561155,2.49156446,141.8,141.76,0.66]
[1763494561334,3.17156446,141.81,141.77,9.78882769]
[1763494561537,3.17156446,141.82,141.77,12.28039215]
[1763494561843,3.17156446,141.82,141.78,0.66]
[1763494562620,3.17156446,141.83,141.78,3.15156446]
[1763494562842,21.29252446,141.83,141.78,3.15156446]
[1763494563037,21.29252446,141.83,141.79,0.66]
[1763494563233,2.49156446,141.84,141.79,7.35156446]
[1763494563444,3.87569063,141.85,141.8,3.15156446]
[1763494563661,2.49156446,141.84,141.8,0.66]
[1763494563948,3.17156446,141.84,141.8,0.66]
[1763494564336,3.17156446,141.83,141.79,4.2]
[1763494564537,3.17156446,141.83,141.79,9.78882769]
[1763494564842,3.17156446,141.83,141.79,10.44882769]
[1763494565961,3.17156446,141.83,141.8,0.66]
[1763494566256,2.49156446,141.84,141.8,0.66]
[1763494566431,3.17156446,141.84,141.8,0.66]
[1763494567944,0.68,141.83,141.79,12.94039215]
[1763494568136,0.68,141.83,141.79,12.28039215]
[1763494568332,0.68,141.83,141.8,0.66]
[1763494568678,0.70412617,141.84,141.8,0.66]
[1763494568829,3.87569063,141.84,141.8,0.66]
[1763494570030,3.19569063,141.84,141.8,0.66]
[1763494570236,6.69156446,141.86,141.81,12.28039215]
[1763494570433,21.29252446,141.86,141.81,16.48039215]
[1763494570658,18.12096,141.86,141.82,0.66]
[1763494571247,18.80096,141.86,141.82,0.66]
[1763494571763,20.61252446,141.86,141.81,13.98882769]
[1763494571937,2.49156446,141.84,141.81,4.2]
[1763494572139,1.38412617,141.85,141.79,4.2]
[1763494572448,2.49156446,141.81,141.78,14.66882769]
[1763494572653,3.15156446,141.81,141.78,4.88]
[1763494573649,3.15156446,141.81,141.78,4.2]
[1763494573964,2.49156446,141.79,141.76,4.2]
[1763494574258,3.15156446,141.78,141.74,9.78882769]
[1763494574559,0.66,141.78,141.74,10.46882769]
[1763494574765,4.90412617,141.82,141.75,0.68]
[1763494575066,0.66,141.8,141.74,10.46882769]
[1763494575644,0.66,141.8,141.74,12.96039215]
[1763494576187,0.66,141.8,141.75,0.68]
[1763494580568,2.49156446,141.8,141.75,3.17156446]
[1763494581171,2.49156446,141.8,141.76,4.87]
[1763494581345,3.19156446,141.8,141.76,4.87]
[1763494581546,3.19156446,141.8,141.76,4.18]
[1763494581871,3.19156446,141.8,141.77,0.69]
[1763494582372,2.49156446,141.81,141.77,0.69]
[1763494582549,3.19156446,141.81,141.77,0.69]
[1763494583278,0.7,141.8,141.77,0.69]
[1763494584469,3.19156446,141.8,141.77,0.69]
[1763494585171,3.19156446,141.8,141.76,4.18]
[1763494585352,3.19156446,141.8,141.77,0.69]
[1763494585676,3.19156446,141.79,141.76,4.18]
[1763494585850,0.7,141.79,141.76,4.18]
[1763494586054,18.82096,141.81,141.77,0.69]
[1763494586270,2.49156446,141.8,141.77,0.69]
[1763494586584,0.7,141.83,141.77,3.18156446]
[1763494586751,3.19156446,141.83,141.77,3.18156446]
[1763494586953,3.19156446,141.83,141.78,0.69]
[1763494587574,2.49156446,141.82,141.78,0.69]
[1763494587884,2.49156446,141.81,141.78,0.69]
[1763494588251,3.19156446,141.82,141.78,0.69]
[1763494589760,3.19156446,141.81,141.78,0.69]
[1763494590074,3.19156446,141.82,141.78,0.69]
[1763494593579,2.49156446,141.83,141.78,3.18156446]
[1763494593963,3.19156446,141.83,141.79,0.69]
[1763494594274,4.18,141.87,141.8,2.49156446]
[1763494594464,3.19156446,141.86,141.81,2.49156446]
[1763494594665,3.19156446,141.86,141.81,3.18156446]
[1763494594863,3.19156446,141.86,141.82,0.69]
[1763494595069,0.7,141.85,141.8,4.18]
[1763494595381,18.82096,141.85,141.8,4.87]
[1763494595583,21.31252446,141.85,141.81,0.69]
[1763494595881,0.7,141.84,141.81,0.69]
[1763494597384,2.49156446,141.83,141.77,9.78882769]
[1763494597561,2.49156446,141.83,141.78,7.36156446]
[1763494597762,3.19156446,141.82,141.78,4.18]
[1763494598164,0.7,141.81,141.77,3.18156446]
[1763494598361,3.19156446,141.81,141.77,4.18]
[1763494598570,3.19156446,141.81,141.77,4.87]
[1763494598778,0.7,141.81,141.77,6.67156446]
[1763494599086,2.49156446,141.82,141.78,0.69]
[1763494599087,3.19156446,141.82,141.78,0.69]
[1763494599555,2.49156446,141.83,141.78,3.18156446]
[1763494599760,5.58412617,141.84,141.79,3.18156446]
[1763494599995,8.07569063,141.84,141.79,3.18156446]
[1763494600162,0.7,141.83,141.79,3.18156446]
[1763494600484,3.19156446,141.83,141.79,0.69]
[1763494600883,0.7,141.82,141.79,0.69]
[1763494601066,0.7,141.82,141.75,9.78882769]
[1763494601273,3.89569063,141.82,141.76,3.18156446]
[1763494601473,2.49156446,141.81,141.76,3.18156446]
[1763494601668,3.19156446,141.82,141.77,3.18156446]
[1763494602183,8.05569063,141.84,141.79,2.49156446]
[1763494602378,3.17156446,141.83,141.78,3.18156446]
[1763494602779,0.68,141.82,141.78,3.18156446]
[1763494603669,0.68,141.83,141.79,0.67]
[1763494603989,18.12096,141.85,141.81,2.49156446]
[1763494603990,0.68,141.85,141.81,2.49156446]
[1763494604191,0.70412617,141.87,141.77,0.67]
[1763494604192,2.49156446,141.82,141.77,0.67]
[1763494604366,3.17156446,141.81,141.76,12.28039215]
[1763494604568,3.17156446,141.81,141.76,12.95039215]
[1763494604767,3.17156446,141.81,141.77,0.67]
[1763494604986,0.68,141.81,141.77,3.16156446]
[1763494605480,2.49156446,141.83,141.78,3.16156446]
[1763494605770,0.68,141.81,141.77,2.49156446]
[1763494606166,0.68,141.81,141.78,0.67]
[1763494607669,0.68,141.81,141.78,4.55991459]
[1763494609191,0.68,141.81,141.79,4.18]
[1763494609404,0.70412617,141.83,141.79,4.18]
[1763494609707,4.56991459,141.85,141.8,4.55991459]
[1763494609993,3.88991459,141.86,141.81,0.67]
[1763494610204,0.68,141.85,141.81,0.67]
[1763494610987,0.68,141.85,141.81,4.55991459]
[1763494611393,0.68,141.85,141.81,0.67]
[1763494611572,0.68,141.85,141.81,4.55991459]
[1763494612089,4.56991459,141.85,141.78,9.78882769]
[1763494612275,3.88991459,141.84,141.79,8.06991459]
[1763494612595,4.56991459,141.84,141.79,8.06991459]
[1763494612807,3.88991459,141.81,141.75,9.78882769]
[1763494613013,3.88991459,141.81,141.76,4.18]
[1763494613174,0.68,141.8,141.76,4.18]
[1763494613498,0.68,141.8,141.76,8.73991459]
[1763494613886,0.68,141.8,141.77,3.88991459]
[1763494614500,0.68,141.8,141.77,4.55991459]
[1763494614796,3.88991459,141.83,141.77,4.55991459]
[1763494614977,0.68,141.81,141.77,4.55991459]
[1763494616494,0.68,141.81,141.78,0.67]
[1763494616797,0.68,141.81,141.77,4.55991459]
[1763494618092,0.68,141.83,141.78,14.34874228]
[1763494619196,0.68,141.83,141.78,13.67874228]
[1763494619406,0.68,141.83,141.79,0.67]
[1763494619590,4.56991459,141.85,141.8,8.06991459]
[1763494619790,18.80096,141.85,141.8,8.06991459]
[1763494619987,0.68,141.84,141.8,8.73991459]
[1763494620806,3.88991459,141.87,141.81,0.67]
[1763494620984,4.56991459,141.86,141.81,4.55991459]
[1763494621391,0.68,141.85,141.81,4.55991459]
[1763494622107,5.27404076,141.85,141.82,4.18]
[1763494622614,0.68,141.84,141.82,4.18]
[1763494625615,0.68,141.84,141.81,4.18]
[1763494626324,0.68,141.89,141.83,3.88991459]
[1763494626624,0.68,141.88,141.84,3.88991459]
[1763494626785,18.80096,141.88,141.84,3.88991459]
[1763494627183,18.12096,141.88,141.84,4.55991459]
[1763494627399,0.68,141.87,141.84,3.88991459]
[1763494627613,0.68,141.87,141.85,4.18]
[1763494628428,4.59404076,141.86,141.78,4.55991459]
[1763494628603,3.88991459,141.82,141.77,13.67874228]
[1763494628908,3.88991459,141.81,141.77,9.78882769]
[1763494629112,4.56991459,141.82,141.77,10.09766241]
[1763494629492,0.68,141.81,141.77,10.09766241]
[1763494630295,4.56991459,141.81,141.77,10.09766241]
[1763494630492,0.68,141.81,141.78,4.18]
[1763494631097,0.68,141.82,141.78,4.85]
[1763494631393,0.68,141.83,141.79,4.55991459]
[1763494631603,4.59404076,141.85,141.79,4.55991459]
[1763494631788,5.27404076,141.85,141.79,4.55991459]
[1763494631986,0.68,141.84,141.79,4.55991459]
[1763494632402,0.68,141.84,141.8,0.65]
[1763494632911,0.68,141.84,141.8,4.53991459]
[1763494633420,0.70412617,141.86,141.8,3.88991459]
[1763494633601,4.60991459,141.86,141.81,4.53991459]
[1763494633919,22.73087459,141.86,141.81,9.78882769]
[1763494634113,0.72,141.85,141.81,9.78882769]
[1763494634492,0.72,141.85,141.81,0.65]
[1763494635289,0.72,141.85,141.81,4.53991459]
[1763494635503,0.72,141.85,141.82,4.18]
[1763494636419,0.72,141.87,141.82,4.83]
[1763494636608,22.71500076,141.87,141.82,4.83]
[1763494636806,0.72,141.86,141.82,4.83]
[1763494637120,0.72,141.86,141.82,8.71991459]
[1763494638726,0.72,141.86,141.82,4.18]
[1763494638727,4.60991459,141.86,141.82,4.18]
[1763494638901,4.60991459,141.86,141.82,4.83]
[1763494639298,0.72,141.86,141.82,4.83]
[1763494639498,4.60991459,141.86,141.82,4.83]
[1763494640598,4.59404076,141.88,141.83,0.68]
[1763494640804,1.38412617,141.88,141.83,4.56991459]
[1763494641000,0.68,141.87,141.83,4.56991459]
[1763494641718,18.80096,141.87,141.82,8.06991459]
[1763494642029,18.80096,141.87,141.83,0.68]
[1763494643219,0.68,141.87,141.83,4.56991459]
[1763494643436,0.68,141.87,141.83,3.88991459]
[1763494643633,0.68,141.87,141.83,4.56991459]
[1763494644739,18.12096,141.89,141.84,4.56991459]
[1763494644914,0.88,141.92,141.88,3.88991459]
[1763494645115,0.88,141.92,141.89,8.06991459]
[1763494645737,0.88,141.92,141.9,3.88991459]
[1763494646503,0.2,141.92,141.91,4.56991459]
[1763494647018,0.2,141.92,141.91,14.35874228]
[1763494647214,0.2,141.92,141.91,9.78882769]
[1763494647438,0.2,141.92,141.91,10.46882769]
[1763494647640,0.2,141.92,141.91,14.35874228]
[1763494648019,0.2,141.92,141.91,32.47970228]
[1763494648343,0.2,141.93,141.92,9.78882769]
[1763494648507,0.2,141.93,141.92,18.53874228]
[1763494648924,0.2,141.93,141.92,22.42865687]
[1763494649352,0.2,142.0,141.96,9.78882769]
[1763494649527,0.88,142.0,141.97,8.06991459]
[1763494651744,0.88,142.0,141.97,4.18]
[1763494651915,0.88,142.0,141.97,8.06991459]
[1763494652113,0.88,141.98,141.97,4.18]
[1763494652516,0.2,141.98,141.97,4.18]
[1763494652945,0.88,141.98,141.92,9.78882769]
[1763494653129,0.88,141.98,141.94,13.67874228]
[1763494653548,0.68,141.97,141.94,13.67874228]
[1763494653840,0.68,141.97,141.95,3.88991459]
[1763494654011,0.68,141.97,141.96,4.18]
[1763494654535,4.56991459,141.97,141.93,4.18]
[1763494654926,0.68,141.96,141.93,4.18]
[1763494655433,0.68,141.96,141.93,22.30096]
[1763494656240,4.56991459,141.96,141.93,22.30096]
[1763494656410,4.56991459,141.96,141.91,22.01087459]
[1763494656610,0.68,141.95,141.92,4.18]
[1763494659442,0.68,141.95,141.92,8.06991459]
[1763494660339,0.2,141.98,141.94,3.88991459]
[1763494660524,0.2,141.98,141.96,3.88991459]
[1763494660725,0.2,141.98,141.95,8.06991459]
[1763494660930,0.88,141.98,141.95,8.06991459]
[1763494661648,0.2,141.98,141.95,4.18]
[1763494661850,0.68,141.97,141.95,4.18]
[1763494662153,0.68,141.97,141.95,8.06991459]
[1763494663152,0.68,141.97,141.95,4.18]
[1763494663626,4.56991459,141.97,141.94,4.18]
[1763494663942,3.88991459,141.96,141.94,4.18]
[1763494664137,4.54991459,141.96,141.94,4.18]
[1763494664327,0.66,141.95,141.94,4.18]
[1763494666747,0.2,141.98,141.94,8.78991459]